fUSD/lending_fUSD_20240423
["ID","MTS","AMOUNT","RATE_DAILY","PERIOD"]
[323267673,1713858653325,-500.0,0.00012267,2]
[323267674,1713858653337,-500.0,0.00012267,2]
[323267675,1713858653348,-643.38,0.00012267,2]
[323267676,1713858653358,-500.0,0.00012267,2]
[323267677,1713858653368,-500.0,0.00012267,2]
[323267678,1713858653379,-500.0,0.00012267,2]
[323267679,1713858653389,-500.0,0.00012267,2]
[323267680,1713858653400,-672.03,0.00012267,2]
[323267681,1713858653414,-500.0,0.00012267,2]
[323267682,1713858653424,-500.0,0.00012267,2]
[323267683,1713858653436,-998.93,0.00012267,2]
[323267684,1713858653447,-6975.8,0.00012267,2]
[323267685,1713858653457,-500.0,0.00012267,2]
[323267686,1713858653467,-394.19202152,0.00012267,2]
[323267687,1713858653478,-500.0,0.00012267,2]
[323267688,1713858653489,-150.0,0.00012267,2]
[323267689,1713858653500,-500.0,0.00012267,2]
[323267690,1713858653510,-1245.83,0.00012267,2]
[323267691,1713858653520,-989.05,0.00012267,2]
[323267692,1713858653531,-1524.06,0.00012267,2]
[323267693,1713858653540,-2528.89,0.00012267,2]
[323267694,1713858653550,-500.0,0.00012267,2]
[323267695,1713858653560,-435.57199887,0.00012267,2]
[323267696,1713858653570,-500.0,0.00012267,2]
[323267697,1713858653580,-500.0,0.00012267,2]
[323267698,1713858653659,-500.0,0.00012267,2]
[323267699,1713858653671,-574.82635876,0.00012267,2]
[323267700,1713858653681,-550.54,0.00012267,2]
[323267701,1713858653691,-500.0,0.00012267,2]
[323267702,1713858653702,-500.0,0.00012267,2]
[323267703,1713858653713,-884.55,0.00012267,2]
[323267704,1713858653723,-500.0,0.00012267,2]
[323267705,1713858653733,-500.0,0.00012267,2]
[323267706,1713858653744,-500.0,0.00012267,2]
[323267707,1713858653754,-581.51,0.00012267,2]
[323267708,1713858653765,-1512.42,0.00012267,2]
[323267709,1713858653776,-500.0,0.00012267,2]
[323267710,1713858653788,-3065.9,0.00012267,2]
[323267711,1713858653810,-596.09,0.00012267,2]
[323267712,1713858653826,-500.0,0.00012267,2]
[323267713,1713858653837,-500.0,0.00012267,2]
[323267714,1713858653847,-500.0,0.00012267,2]
[323267715,1713858653858,-500.0,0.00012267,2]
[323267716,1713858653868,-1158.34,0.00012267,2]
[323267717,1713858653877,-4807.78,0.00012267,2]
[323267718,1713858653887,-1211.26,0.00012267,2]
[323267719,1713858653896,-500.0,0.00012267,2]
[323267720,1713858653909,-573.07237551,0.00012267,2]
[323267721,1713858653918,-544.61,0.00012267,2]
[323267722,1713858653928,-2685.12,0.00012267,2]
[323267723,1713858653938,-2552.68,0.00012267,2]
[323267724,1713858653947,-5867.87,0.00012267,2]
[323267725,1713858653957,-500.0,0.00012267,2]
[323267726,1713858653967,-525.91609066,0.00012267,2]
[323267727,1713858653976,-500.0,0.00012267,2]
[323267728,1713858653986,-500.0,0.00012267,2]
[323267729,1713858653995,-500.0,0.00012267,2]
[323267730,1713858654004,-157.77868432,0.00012267,2]
[323267731,1713858654013,-1100.97,0.00012267,2]
[323267732,1713858654022,-933.27,0.00012267,2]
[323267733,1713858654031,-10755.33,0.00012267,2]
[323267734,1713858654040,-500.0,0.00012267,2]
[323267735,1713858654049,-500.0,0.00012267,2]
[323267736,1713858654058,-500.0,0.00012267,2]
[323267737,1713858654067,-500.0,0.00012267,2]
[323267738,1713858654078,-1369.8,0.00012267,2]
[323267739,1713858654087,-500.0,0.00012267,2]
[323267740,1713858654096,-500.0,0.00012267,2]
[323267741,1713858654105,-500.0,0.00012267,2]
[323267742,1713858654115,-1318.64,0.00012267,2]
[323267743,1713858654125,-11161.82,0.00012267,2]
[323267744,1713858654135,-500.0,0.00012267,2]
[323267745,1713858654145,-500.0,0.00012267,2]
[323267746,1713858654157,-530.90379613,0.00012267,2]
[323267747,1713858654166,-3897.82,0.00012267,2]
[323267748,1713858654174,-500.0,0.00012267,2]
[323267749,1713858654183,-500.0,0.00012267,2]
[323267750,1713858654192,-1809.25,0.00012267,2]
[323267751,1713858654201,-500.0,0.00012267,2]
[323267752,1713858654210,-500.0,0.00012267,2]
[323267753,1713858654219,-500.0,0.00012267,2]
[323267754,1713858654227,-11951.88,0.00012267,2]
[323267755,1713858654237,-500.0,0.00012267,2]
[323267756,1713858654246,-500.0,0.00012267,2]
[323267757,1713858654255,-500.0,0.00012267,2]
[323267758,1713858654264,-500.0,0.00012267,2]
[323267759,1713858654273,-500.0,0.00012267,2]
[323267760,1713858654282,-500.0,0.00012267,2]
[323267761,1713858654291,-7100.49,0.00012267,2]
[323267762,1713858654300,-1237.94,0.00012267,2]
[323267763,1713858654309,-500.0,0.00012267,2]
[323267764,1713858654318,-523.55,0.00012267,2]
[323267765,1713858654327,-500.0,0.00012267,2]
[323267766,1713858654336,-174.4393648,0.00012267,2]
[323267767,1713858654346,-500.0,0.00012267,2]
[323267768,1713858654355,-500.0,0.00012267,2]
[323267769,1713858654364,-500.0,0.00012267,2]
[323267770,1713858654373,-175.31783392,0.00012267,2]
[323267771,1713858654382,-15583.69638945,0.00012267,2]
[323267772,1713858654408,-2652.92,0.00012267,2]
[323267773,1713858654434,-635.73201444,0.00012267,2]
[323267774,1713858654465,-295.76749812,0.00011992,2]
[323267775,1713858654474,-494.68250187,0.00012267,2]
[323267776,1713858654486,-1016.86114957,0.00012267,2]
[323267777,1713858681206,757.96889502,9e-05,2]
[323267778,1713858688976,494.98,9.458e-05,2]
[323267780,1713858812665,156.7712103,0.00011155,2]
[323267781,1713858818536,150.8,0.00010453,2]
[323267782,1713858818756,150.8,0.00010495,2]
[323267783,1713858818963,150.8,0.00010537,2]
[323267784,1713858819178,150.8,0.00010579,2]
[323267785,1713858819574,150.8,0.00010621,2]
[323267786,1713858819806,150.8,0.00010662,2]
[323267787,1713858820006,150.8,0.00010704,2]
[323267788,1713858820245,150.8,0.00010746,2]
[323267789,1713858820435,150.8,0.00010788,2]
[323267790,1713858820638,150.8,0.0001083,2]
[323267791,1713858820852,150.8,0.00010872,2]
[323267792,1713858821060,150.8,0.00010914,2]
[323267793,1713858821289,150.8,0.00010956,2]
[323267794,1713858821490,150.8,0.00010998,2]
[323267795,1713858844319,26913.94364508,0.00025,120]
[323267796,1713858884289,200.0,0.00010401,2]
[323267799,1713858969569,390.72,0.00010406,2]
[323267800,1713859019107,485.48,0.00010411,2]
[323267804,1713859162408,166.2,0.00010423,2]
[323267805,1713859242298,22502.82,0.00010429,2]
[323267809,1713859262239,53515.48,0.00010507,2]
[323267812,1713859356423,507.2,8.448e-05,2]
[323267813,1713859356702,507.2,0.00010712,2]
[323267817,1713859436509,167.36827021,0.000112,2]
[323267818,1713859439279,192.75371365,0.000112,2]
[323267819,1713859441283,706.52478126,0.000112,2]
[323267820,1713859448157,155.0,0.000112,2]
[323267821,1713859457758,155.0,0.000112,2]
[323267822,1713859462682,408.45355212,0.000112,2]
[323267823,1713859467384,155.0,0.000112,2]
[323267824,1713859468002,156.77121027,0.00011101,2]
[323267825,1713859469988,260.14,0.00010462,2]
[323267826,1713859478034,3759.60382736,0.000112,2]
[323267827,1713859492308,611.61,0.00010471,2]
[323267848,1713859612595,2179.73737234,0.00011201,2]
[323267849,1713859613558,3080.89024229,0.00011201,2]
[323267850,1713859616003,155.0,0.00011201,2]
[323267851,1713859623311,194.40257028,0.00011201,2]
[323267852,1713859629232,532.89332388,0.00011201,2]
[323267947,1713859778156,-1244.54920757,0.00011232,2]
[323267948,1713859778179,-3080.89024229,0.00011233,2]
[323267949,1713859778201,-1287.49239605,0.00011238,2]
[323267950,1713859778222,-207.85411425,0.00011249,2]
[323267951,1713859778244,-684.19475722,0.00011254,2]
[323267952,1713859778266,-639.91,0.00011257,2]
[323267953,1713859778544,-1261.25,0.00011257,2]
[323267954,1713859778568,-639.91,0.0001126,2]
[323267955,1713859778595,-150.0,0.00011262,2]
[323267956,1713859778619,-639.91,0.00011263,2]
[323267957,1713859778641,-499.99,0.00011263,2]
[323267958,1713859778663,-2485.3,0.00011263,2]
[323267959,1713859778686,-639.91,0.00011266,2]
[323267960,1713859778709,-639.91,0.00011269,2]
[323267961,1713859778731,-2533.63,0.00011269,2]
[323267962,1713859778753,-639.91,0.00011272,2]
[323267963,1713859778777,-156.77121027,0.00011274,2]
[323267964,1713859778800,-639.91,0.00011275,2]
[323267965,1713859778822,-639.91,0.00011278,2]
[323267966,1713859778846,-639.91,0.00011281,2]
[323267967,1713859778870,-639.91,0.00011284,2]
[323267968,1713859778894,-639.91,0.00011287,2]
[323267969,1713859778917,-639.91,0.0001129,2]
[323267970,1713859778940,-639.91,0.00011293,2]
[323267971,1713859778964,-639.91,0.00011296,2]
[323267972,1713859778987,-639.91,0.00011298,2]
[323267973,1713859779011,-639.91,0.00011301,2]
[323267974,1713859779034,-639.91,0.00011304,2]
[323267975,1713859779056,-639.91,0.00011307,2]
[323267976,1713859779081,-639.91,0.0001131,2]
[323267977,1713859779105,-639.91,0.00011313,2]
[323267978,1713859779127,-1000.0,0.00011391,2]
[323267979,1713859779150,-5546.47596119,0.00011392,2]
[323267980,1713859779173,-5000.0,0.0001144,2]
[323267981,1713859779200,-156.77121027,0.00011447,2]
[323267997,1713859831567,-156.77121027,0.0001162,2]
[323267999,1713859831577,-485.48,0.00011712,2]
[323268001,1713859831587,-611.61,0.0001178,2]
[323268003,1713859831596,-156.77121027,0.00011793,2]
[323268005,1713859831606,-231.61996052,0.00011793,2]
[323268006,1713859831615,-2203.435,0.00011794,2]
[323268007,1713859831624,-2691.14108973,0.00011794,2]
[323268008,1713859831636,-2033.57,0.00011794,2]
[323268009,1713859831648,-306.88917699,0.00011794,2]
[323268010,1713859831688,-643.42,0.00011794,2]
[323268011,1713859831838,-4117.55667087,0.00011794,2]
[323268012,1713859831849,-441.23700119,0.00011794,2]
[323268013,1713859831860,-2684.25710369,0.00011794,2]
[323268019,1713859834289,4600.0,0.0001144,2]
[323268035,1713859837543,-9206.83685753,0.00011794,2]
[323268037,1713859837553,-183.85475088,0.00011794,2]
[323268039,1713859837563,-154.73172331,0.00011883,2]
[323268041,1713859837573,-167.52787288,0.00011891,2]
[323268043,1713859837582,-194.75745917,0.00011891,2]
[323268046,1713859837592,-181.28407634,0.00011891,2]
[323268048,1713859837601,-175.69423454,0.00011891,2]
[323268050,1713859837610,-155.0,0.00011891,2]
[323268052,1713859837619,-410.31474454,0.00011891,2]
[323268054,1713859837630,-155.75086121,0.00011891,2]
[323268056,1713859837640,-272.04541922,0.00011891,2]
[323268058,1713859837649,-181.40893477,0.00011891,2]
[323268060,1713859837657,-882.26066132,0.00011891,2]
[323268062,1713859837667,-195.30572337,0.00011891,2]
[323268064,1713859837676,-155.21727484,0.00011891,2]
[323268066,1713859837686,-1526.17818972,0.00011891,2]
[323268068,1713859837696,-481.44377972,0.00011891,2]
[323268070,1713859837706,-34862.00004008,0.00011891,2]
[323268072,1713859837716,-155.25533383,0.00011892,2]
[323268074,1713859837725,-43318.96,0.00011892,2]
[323268076,1713859837735,-4174.32,0.00011892,2]
[323268078,1713859837745,-253.16365652,0.00011892,2]
[323268079,1713859837755,-3094.14,0.00011892,2]
[323268080,1713859837765,-967.57,0.00011892,2]
[323268081,1713859837775,-500.0,0.00011892,2]
[323268082,1713859837784,-500.0,0.00011892,2]
[323268083,1713859837794,-500.0,0.00011892,2]
[323268084,1713859837804,-500.0,0.00011892,2]
[323268085,1713859837814,-915.69,0.00011892,2]
[323268086,1713859837823,-1521.57,0.00011892,2]
[323268087,1713859837833,-500.0,0.00011892,2]
[323268088,1713859837843,-621.16623162,0.00011892,2]
[323268089,1713859837853,-500.0,0.00011892,2]
[323268090,1713859837863,-6394.48,0.00011892,2]
[323268091,1713859837872,-500.0,0.00011892,2]
[323268092,1713859837883,-2318.15,0.00011892,2]
[323268093,1713859837893,-504.66,0.00011892,2]
[323268094,1713859837903,-2943.71,0.00011892,2]
[323268095,1713859837914,-949.63,0.00011892,2]
[323268096,1713859837923,-500.0,0.00011892,2]
[323268098,1713859837932,-533.05,0.00011892,2]
[323268099,1713859837941,-500.0,0.00011892,2]
[323268100,1713859837950,-1386.39,0.00011892,2]
[323268101,1713859837959,-500.0,0.00011892,2]
[323268102,1713859837968,-810.83,0.00011892,2]
[323268103,1713859837977,-500.0,0.00011892,2]
[323268104,1713859837986,-2339.96,0.00011892,2]
[323268105,1713859837994,-4407.13,0.00011892,2]
[323268106,1713859838003,-500.0,0.00011892,2]
[323268107,1713859838012,-5378.88,0.00011892,2]
[323268108,1713859838021,-500.0,0.00011892,2]
[323268109,1713859838031,-5551.04,0.00011892,2]
[323268110,1713859838041,-500.0,0.00011892,2]
[323268112,1713859838051,-1461.95918627,0.00011892,2]
[323268114,1713859838060,-896.08,0.00011892,2]
[323268116,1713859838070,-500.0,0.00011892,2]
[323268118,1713859838079,-1162.99,0.00011892,2]
[323268120,1713859838088,-9859.06,0.00011892,2]
[323268122,1713859838098,-500.0,0.00011892,2]
[323268125,1713859838108,-615.34,0.00011892,2]
[323268126,1713859838117,-1208.75,0.00011892,2]
[323268128,1713859838127,-500.0,0.00011892,2]
[323268130,1713859838138,-1255.65,0.00011892,2]
[323268132,1713859838147,-500.0,0.00011892,2]
[323268134,1713859838155,-3573.0,0.00011892,2]
[323268136,1713859838164,-500.0,0.00011892,2]
[323268138,1713859838173,-500.0,0.00011892,2]
[323268140,1713859838183,-500.0,0.00011892,2]
[323268142,1713859838192,-583.11,0.00011892,2]
[323268144,1713859838200,-500.0,0.00011892,2]
[323268146,1713859838209,-5021.44,0.00011892,2]
[323268148,1713859838218,-10716.97,0.00011892,2]
[323268150,1713859838228,-6508.79,0.00011892,2]
[323268152,1713859838238,-500.0,0.00011892,2]
[323268154,1713859838247,-596.49,0.00011892,2]
[323268156,1713859838258,-1737.15,0.00011892,2]
[323268158,1713859838267,-1054.66,0.00011892,2]
[323268160,1713859838277,-500.0,0.00011892,2]
[323268162,1713859838286,-4130.8,0.00011892,2]
[323268164,1713859838295,-500.0,0.00011892,2]
[323268166,1713859838304,-1188.6,0.00011892,2]
[323268168,1713859838314,-706.91,0.00011892,2]
[323268170,1713859838323,-1160.1,0.00011892,2]
[323268172,1713859838332,-500.0,0.00011892,2]
[323268174,1713859838341,-500.0,0.00011892,2]
[323268176,1713859838349,-500.0,0.00011892,2]
[323268178,1713859838359,-962.52,0.00011892,2]
[323268180,1713859838368,-500.0,0.00011892,2]
[323268182,1713859838377,-2347.61,0.00011892,2]
[323268184,1713859838387,-500.0,0.00011893,2]
[323268186,1713859838397,-35922.6818,0.00011893,2]
[323268188,1713859838406,-33619.2935,0.00011893,2]
[323268190,1713859838416,-17781.9431,0.00011893,2]
[323268192,1713859838426,-500.0,0.00011893,2]
[323268194,1713859838435,-591.47,0.00011893,2]
[323268197,1713859838445,-500.0,0.00011893,2]
[323268199,1713859838456,-766.08,0.00011893,2]
[323268200,1713859838465,-505.22160594,0.00011893,2]
[323268202,1713859838474,-500.0,0.00011893,2]
[323268204,1713859838483,-500.0,0.00011893,2]
[323268206,1713859838492,-515.25988869,0.00011893,2]
[323268209,1713859838501,-502.48180941,0.00011893,2]
[323268210,1713859838510,-500.0,0.00011893,2]
[323268213,1713859838520,-500.0,0.00011893,2]
[323268214,1713859838529,-500.0,0.00011893,2]
[323268217,1713859838538,-500.0,0.00011893,2]
[323268219,1713859838548,-501.34016465,0.00011893,2]
[323268220,1713859838557,-500.0,0.00011893,2]
[323268223,1713859838567,-500.0,0.00011893,2]
[323268225,1713859838576,-514.21,0.00011893,2]
[323268227,1713859838586,-411.10777307,0.00011893,2]
[323268229,1713859838596,-912.53,0.00011893,2]
[323268231,1713859838607,-500.0,0.00011893,2]
[323268233,1713859838616,-500.0,0.00011893,2]
[323268235,1713859838625,-500.0,0.00011893,2]
[323268237,1713859838635,-500.0,0.00011893,2]
[323268239,1713859838645,-500.0,0.00011893,2]
[323268241,1713859838654,-503.58412415,0.00011893,2]
[323268266,1713859838664,-500.0,0.00011893,2]
[323268271,1713859838915,-500.0,0.00011893,2]
[323268273,1713859838924,-502.92718545,0.00011893,2]
[323268275,1713859838933,-500.0,0.00011893,2]
[323268277,1713859838942,-500.0,0.00011893,2]
[323268279,1713859838951,-500.0,0.00011893,2]
[323268281,1713859838960,-1678.54,0.00011893,2]
[323268283,1713859838969,-981.18,0.00011893,2]
[323268285,1713859838978,-500.0,0.00011893,2]
[323268287,1713859838988,-500.0,0.00011893,2]
[323268289,1713859838996,-500.0,0.00011893,2]
[323268291,1713859839005,-500.0,0.00011893,2]
[323268293,1713859839015,-500.0,0.00011893,2]
[323268295,1713859839025,-500.0,0.00011893,2]
[323268297,1713859839036,-500.0,0.00011893,2]
[323268299,1713859839045,-502.32250162,0.00011893,2]
[323268301,1713859839054,-503.50117415,0.00011893,2]
[323268303,1713859839063,-502.03244005,0.00011893,2]
[323268305,1713859839072,-500.0,0.00011893,2]
[323268307,1713859839082,-1072.09,0.00011893,2]
[323268309,1713859839091,-500.0,0.00011893,2]
[323268311,1713859839100,-448.79363045,0.00011893,2]
[323268313,1713859839112,-500.0,0.00011893,2]
[323268315,1713859839121,-500.0,0.00011893,2]
[323268317,1713859839130,-500.0,0.00011893,2]
[323268319,1713859839140,-500.0,0.00011893,2]
[323268321,1713859839149,-500.0,0.00011893,2]
[323268323,1713859839158,-504.6,0.00011893,2]
[323268325,1713859839167,-500.0,0.00011893,2]
[323268327,1713859839176,-520.58254522,0.00011893,2]
[323268329,1713859839185,-500.0,0.00011893,2]
[323268331,1713859839195,-586.08214952,0.00011893,2]
[323268333,1713859839204,-500.0,0.00011893,2]
[323268335,1713859839213,-500.0,0.00011893,2]
[323268337,1713859839222,-502.95101655,0.00011893,2]
[323268339,1713859839232,-1228.65,0.00011893,2]
[323268341,1713859839241,-500.0,0.00011893,2]
[323268343,1713859839250,-500.0,0.00011893,2]
[323268345,1713859839259,-500.0,0.00011893,2]
[323268347,1713859839268,-500.0,0.00011893,2]
[323268349,1713859839277,-500.0,0.00011893,2]
[323268351,1713859839286,-500.0,0.00011893,2]
[323268353,1713859839296,-500.0,0.00011893,2]
[323268355,1713859839305,-500.0,0.00011893,2]
[323268357,1713859839314,-733.56,0.00011893,2]
[323268359,1713859839323,-500.0,0.00011893,2]
[323268361,1713859839333,-500.0,0.00011893,2]
[323268363,1713859839342,-500.0,0.00011893,2]
[323268365,1713859839351,-1300.32,0.00011893,2]
[323268367,1713859839361,-500.0,0.00011893,2]
[323268370,1713859839370,-500.0,0.00011893,2]
[323268373,1713859839379,-500.0,0.00011893,2]
[323268376,1713859839390,-500.0,0.00011893,2]
[323268378,1713859839398,-500.0,0.00011893,2]
[323268381,1713859839407,-981.01,0.00011893,2]
[323268383,1713859839417,-500.0,0.00011893,2]
[323268385,1713859839426,-500.0,0.00011893,2]
[323268386,1713859839435,-500.0,0.00011893,2]
[323268387,1713859839444,-500.0,0.00011893,2]
[323268388,1713859839453,-500.0,0.00011893,2]
[323268389,1713859839462,-1342.04,0.00011893,2]
[323268390,1713859839472,-500.0,0.00011893,2]
[323268391,1713859839481,-500.0,0.00011893,2]
[323268392,1713859839490,-500.0,0.00011893,2]
[323268393,1713859839500,-500.0,0.00011893,2]
[323268394,1713859839509,-500.0,0.00011893,2]
[323268395,1713859839519,-500.0,0.00011893,2]
[323268396,1713859839529,-500.0,0.00011893,2]
[323268397,1713859839540,-500.0,0.00011893,2]
[323268398,1713859839549,-500.0,0.00011893,2]
[323268399,1713859839558,-500.0,0.00011893,2]
[323268400,1713859839568,-500.0,0.00011893,2]
[323268401,1713859839577,-500.0,0.00011893,2]
[323268402,1713859839587,-500.0,0.00011893,2]
[323268403,1713859839597,-500.0,0.00011893,2]
[323268404,1713859839607,-500.0,0.00011893,2]
[323268405,1713859839618,-500.0,0.00011893,2]
[323268406,1713859839628,-500.0,0.00011893,2]
[323268407,1713859839641,-500.0,0.00011893,2]
[323268408,1713859839650,-500.0,0.00011893,2]
[323268409,1713859839659,-500.0,0.00011893,2]
[323268410,1713859839669,-628.21,0.00011893,2]
[323268411,1713859839678,-500.0,0.00011893,2]
[323268412,1713859839687,-500.0,0.00011893,2]
[323268413,1713859839697,-500.0,0.00011893,2]
[323268414,1713859839706,-500.0,0.00011893,2]
[323268415,1713859839716,-500.0,0.00011893,2]
[323268416,1713859839725,-500.0,0.00011893,2]
[323268417,1713859839735,-371.53778349,0.00011893,2]
[323268418,1713859839745,-500.0,0.00011893,2]
[323268419,1713859839756,-500.0,0.00011893,2]
[323268420,1713859839766,-500.0,0.00011893,2]
[323268421,1713859839775,-500.0,0.00011893,2]
[323268422,1713859839785,-1083.58,0.00011893,2]
[323268423,1713859839794,-500.0,0.00011893,2]
[323268424,1713859839803,-500.0,0.00011893,2]
[323268425,1713859839812,-500.0,0.00011893,2]
[323268426,1713859839822,-500.0,0.00011893,2]
[323268427,1713859839831,-500.0,0.00011893,2]
[323268428,1713859839841,-500.0,0.00011893,2]
[323268429,1713859839850,-500.0,0.00011893,2]
[323268430,1713859839860,-500.0,0.00011893,2]
[323268431,1713859839870,-500.0,0.00011893,2]
[323268432,1713859839879,-500.0,0.00011893,2]
[323268433,1713859839891,-500.0,0.00011893,2]
[323268434,1713859839900,-618.92,0.00011893,2]
[323268435,1713859839909,-500.0,0.00011893,2]
[323268436,1713859839918,-500.0,0.00011893,2]
[323268437,1713859839927,-500.0,0.00011893,2]
[323268438,1713859839937,-500.0,0.00011893,2]
[323268439,1713859839946,-500.0,0.00011893,2]
[323268440,1713859839955,-500.0,0.00011893,2]
[323268441,1713859839964,-500.0,0.00011893,2]
[323268442,1713859839973,-500.0,0.00011893,2]
[323268443,1713859839982,-500.0,0.00011893,2]
[323268444,1713859839991,-500.0,0.00011893,2]
[323268445,1713859840000,-501.21823171,0.00011893,2]
[323268446,1713859840009,-500.0,0.00011893,2]
[323268447,1713859840018,-500.0,0.00011893,2]
[323268448,1713859840032,-500.0,0.00011893,2]
[323268449,1713859840042,-500.0,0.00011893,2]
[323268450,1713859840053,-501.25219496,0.00011893,2]
[323268451,1713859840064,-150.0,0.00011893,2]
[323268452,1713859840074,-502.36814552,0.00011893,2]
[323268453,1713859840085,-500.0,0.00011893,2]
[323268454,1713859840095,-785.5,0.00011893,2]
[323268455,1713859840105,-500.0,0.00011893,2]
[323268456,1713859840115,-500.0,0.00011893,2]
[323268457,1713859840124,-500.0,0.00011893,2]
[323268458,1713859840134,-500.0,0.00011893,2]
[323268459,1713859840145,-500.0,0.00011893,2]
[323268460,1713859840154,-500.0,0.00011893,2]
[323268461,1713859840163,-500.0,0.00011893,2]
[323268462,1713859840173,-5000.0,0.00011893,2]
[323268463,1713859840182,-500.0,0.00011893,2]
[323268464,1713859840191,-500.0,0.00011893,2]
[323268465,1713859840200,-500.0,0.00011893,2]
[323268466,1713859840210,-500.0,0.00011893,2]
[323268467,1713859840219,-1418.66,0.00011893,2]
[323268468,1713859840228,-1107.38,0.00011893,2]
[323268469,1713859840238,-100.30259523,0.00011893,2]
[323268470,1713859841101,-500.0,0.00011892,2]
[323268471,1713859841114,-160.03416019,0.00011893,2]
[323268514,1713859841663,-1341.48264943,0.00011694,2]
[323268517,1713859841675,-1402.01131073,0.00011694,2]
[323268519,1713859841685,-239.66324458,0.00011893,2]
[323268521,1713859841694,-500.0,0.00011893,2]
[323268523,1713859841704,-500.0,0.00011893,2]
[323268525,1713859841714,-500.0,0.00011893,2]
[323268527,1713859841723,-500.0,0.00011893,2]
[323268529,1713859841732,-1196.18,0.00011893,2]
[323268531,1713859841741,-500.0,0.00011893,2]
[323268532,1713859841750,-500.0,0.00011893,2]
[323268535,1713859841761,-500.0,0.00011893,2]
[323268536,1713859841770,-94.94544469,0.00011893,2]
[323268541,1713859841803,-405.05455531,0.00011893,2]
[323268543,1713859841812,-500.0,0.00011893,2]
[323268545,1713859841821,-439.2765048,0.00011893,2]
[323268555,1713859841899,-64.11765024,0.00011893,2]
[323268557,1713859841909,-500.0,0.00011893,2]
[323268559,1713859841918,-500.0,0.00011893,2]
[323268561,1713859841927,-500.0,0.00011893,2]
[323268563,1713859841936,-57.28566016,0.00011893,2]
[323268572,1713859842011,-424.5191321,0.00011893,2]
[323268675,1713859843254,-18.19520774,0.00011893,2]
[323268676,1713859843264,-500.0,0.00011893,2]
[323268677,1713859843274,-780.75,0.00011893,2]
[323268678,1713859843283,-500.0,0.00011893,2]
[323268679,1713859843292,-500.0,0.00011893,2]
[323268680,1713859843302,-500.0,0.00011893,2]
[323268681,1713859843311,-500.0,0.00011893,2]
[323268682,1713859843320,-500.0,0.00011893,2]
[323268684,1713859843330,-500.0,0.00011893,2]
[323268686,1713859843339,-500.0,0.00011893,2]
[323268688,1713859843348,-500.0,0.00011893,2]
[323268690,1713859843357,-572.33,0.00011893,2]
[323268692,1713859843366,-500.0,0.00011893,2]
[323268694,1713859843375,-500.0,0.00011893,2]
[323268696,1713859843384,-503.30307418,0.00011893,2]
[323268697,1713859843393,-500.0,0.00011893,2]
[323268700,1713859843403,-500.0,0.00011893,2]
[323268702,1713859843412,-500.0,0.00011893,2]
[323268704,1713859843421,-500.0,0.00011893,2]
[323268705,1713859843430,-500.0,0.00011893,2]
[323268708,1713859843440,-1836.15,0.00011893,2]
[323268710,1713859843449,-500.0,0.00011893,2]
[323268712,1713859843458,-500.0,0.00011893,2]